fUSD/lending_fUSD_20240103
["ID","MTS","AMOUNT","RATE_DAILY","PERIOD"]
[310033588,1704292232562,-212.34,0.00027568,2]
[310033589,1704292232572,-1000.0,0.0002768,2]
[310033590,1704292232584,-230.6,0.0002768,2]
[310033591,1704292232597,-250.0,0.00027681,2]
[310033593,1704292232608,-150.0,0.0002777,2]
[310033595,1704292232618,-158.75,0.00027932,2]
[310033597,1704292232629,-2484.98,0.00027937,2]
[310033599,1704292232639,-12812.93,0.00027945,2]
[310033601,1704292232650,-2637.02875878,0.00028257,4]
[310033603,1704292232660,-393.87027873,0.00028503,2]
[310033606,1704292232671,-212.34,0.00028547,2]
[310033607,1704292232682,-155.0,0.00028767,2]
[310033610,1704292232692,-824.91,0.00028882,2]
[310033612,1704292232702,-1233.14958848,0.00029089,6]
[310033614,1704292232712,-463.28,0.00029089,2]
[310033616,1704292232722,-158.75,0.00029388,2]
[310033618,1704292232731,-210.0,0.00029471,2]
[310033620,1704292232741,-175.12,0.00029524,2]
[310033622,1704292232751,-212.34,0.00029525,2]
[310033624,1704292232761,-177.6,0.00029712,2]
[310033626,1704292232771,-2055.39,0.0002989,10]
[310033628,1704292232781,-1712.83,0.0002989,10]
[310033630,1704292232791,-240.53913084,0.00029899,2]
[310033631,1704292232800,-4224.3579,0.000299,2]
[310033633,1704292232809,-17938.7342,0.000299,2]
[310033634,1704292232819,-100000.0,0.000299,2]
[310033636,1704292232828,-1281.1856,0.000299,2]
[310033638,1704292232842,-317.85839834,0.00029998,2]
[310033640,1704292232852,-928.4610592,0.00029998,2]
[310033642,1704292232862,-400.0,0.00029998,2]
[310033644,1704292232872,-927.97479753,0.00029998,2]
[310033646,1704292232882,-447.75011318,0.00029999,2]
[310033648,1704292232892,-5000.0,0.00029999,2]
[310033650,1704292232902,-448.29033348,0.0003,4]
[310033652,1704292232912,-8806.28564995,0.0003,4]
[310033654,1704292232921,-33112.30029982,0.0003,4]
[310033658,1704292233390,-65.12124323,0.0003,4]
[310033659,1704292233403,-848.4,0.0003,4]
[310033660,1704292233419,-273708.51771428,0.0003,4]
[310033661,1704292233429,-155.0,0.0003,2]
[310033662,1704292233438,-2637.02875878,0.00030043,4]
[310033663,1704292233448,-153.84,0.00030137,2]
[310033664,1704292233458,-6978.97,0.00030137,2]
[310033665,1704292233468,-157.40802707,0.00030137,2]
[310033666,1704292233481,-6522.32368624,0.000305,2]
[310033667,1704292233491,-212.34,0.00030503,2]
[310033668,1704292233501,-170.47902395,0.00030701,4]
[310033669,1704292233511,-1500.0,0.00031,2]
[310033670,1704292233520,-153.84,0.0003105,2]
[310033671,1704292233530,-1000.0,0.0003114,2]
[310033672,1704292233540,-463.28,0.00031353,2]
[310033673,1704292233550,-1257.0,0.00031435,2]
[310033674,1704292233560,-1926.0,0.00031435,2]
[310033675,1704292233570,-992.0,0.00031435,2]
[310033676,1704292233581,-603.486,0.00031435,2]
[310033677,1704292233593,-1138.0,0.00031435,2]
[310033678,1704292233604,-506.0,0.00031435,2]
[310033679,1704292233615,-318.0,0.00031435,2]
[310033680,1704292233625,-428.71,0.00031435,2]
[310033681,1704292233636,-750.0,0.00031435,2]
[310033682,1704292233646,-234.0,0.00031435,2]
[310033683,1704292233657,-5554.0,0.00031435,2]
[310033684,1704292233668,-19633.0,0.00031435,2]
[310033685,1704292233680,-1301.0,0.00031435,2]
[310033686,1704292233690,-2265.0,0.00031435,2]
[310033687,1704292233699,-388.0,0.00031435,2]
[310033688,1704292233709,-4388.0,0.00031435,2]
[310033689,1704292233718,-2411.0,0.00031435,2]
[310033690,1704292233730,-2894.0,0.00031435,2]
[310033691,1704292233740,-1846.0,0.00031435,2]
[310033692,1704292233750,-212.34,0.00031482,2]
[310033693,1704292233760,-500.0,0.000315,2]
[310033694,1704292233771,-818.12,0.00031507,2]
[310033695,1704292233781,-201.0,0.00031715,2]
[310033696,1704292233791,-128848.695555,0.000318,3]
[310033697,1704292233802,-2637.02875878,0.00031829,5]
[310033698,1704292233812,-300.0,0.000319,11]
[310033699,1704292233822,-151.0,0.00031915,7]
[310033700,1704292233831,-153.84,0.00031963,2]
[310033701,1704292233842,-296.83355854,0.00032,4]
[310033702,1704292233852,-244.56576604,0.00032,2]
[310033703,1704292233862,-1000.0,0.00032,2]
[310033704,1704292233871,-374.91,0.00032,2]
[310033705,1704292233881,-2253.524,0.00032,2]
[310033706,1704292233891,-7500.0,0.00032178,2]
[310033707,1704292233900,-721.06,0.00032179,2]
[310033708,1704292233910,-6781.51029238,0.00032208,3]
[310033709,1704292233919,-1130.72149769,0.00032218,2]
[310033710,1704292233932,-1038.02228422,0.00032218,2]
[310033711,1704292233941,-101722.654386,0.00032268,3]
[310033712,1704292233952,-6766.84041152,0.00032277,14]
[310033713,1704292233962,-1251.16542584,0.00032277,4]
[310033714,1704292233973,-345.73203912,0.00032277,15]
[310033715,1704292233983,-1967.0,0.00032278,5]
[310033716,1704292233993,-48467.499999,0.00032278,7]
[310033717,1704292234003,-31127.85661534,0.00032278,5]
[310033718,1704292234012,-57762.17351364,0.00032278,7]
[310033719,1704292234021,-23977.61768527,0.00032278,7]
[310033720,1704292234031,-50000.0,0.00032278,7]
[310033721,1704292234041,-212.34,0.0003246,2]
[310033722,1704292234050,-524.258077,0.00032477,2]
[310033723,1704292234060,-6781.51029238,0.0003249,4]
[310033724,1704292234070,-14032.28432446,0.000325,2]
[310033725,1704292234080,-151.0,0.00032566,4]
[310033726,1704292234092,-150.82382978,0.00032676,2]
[310033727,1704292234102,-600.0,0.000327,11]
[310033728,1704292234112,-500.0,0.00032714,2]
[310033729,1704292234122,-4079.18906528,0.00032766,4]
[310033730,1704292234136,-2702.3212271,0.00032766,4]
[310033731,1704292234145,-1000.0,0.00032776,2]
[310033732,1704292234154,-932.1998,0.00032776,3]
[310033733,1704292234164,-280.0384,0.00032776,2]
[310033734,1704292234174,-500.0,0.00032776,2]
[310033735,1704292234184,-36982.39257288,0.00032776,2]
[310033736,1704292234207,-527.6484375,0.00032776,2]
[310033760,1704292238322,-1105.00000001,0.00031435,2]
[310033761,1704292238402,-281.79999999,0.00031435,2]
[310033762,1704292238412,-795.91477031,0.00031435,2]
[310033763,1704292238425,-37.08522969,0.00031435,2]
[310033764,1704292238434,-295.91477031,0.00031435,2]
[310033765,1704292238568,-72.2634674,0.00031435,2]
[310033766,1704292238659,-573.82176229,0.00031435,2]
[310033767,1704292238668,-476.79309259,0.00031435,2]
[310033768,1704292238727,-360.01020666,0.00031435,2]
[310033769,1704292238740,-189.19670075,0.00031435,2]
[310033770,1704292238750,-262.4915066,0.00032776,2]
[310033771,1704292238762,-310.19070744,0.00032776,2]
[310033772,1704292238775,-588.23134655,0.00032776,2]
[310033773,1704292238787,-841.47167076,0.00032776,2]
[310033854,1704292241603,-16301.61736465,0.00032278,5]
[310033855,1704292241612,-2331.73,0.00032766,10]
[310033856,1704292241621,-2314.30564514,0.00032776,14]
[310033857,1704292241631,-2175.65589154,0.00032776,14]
[310033858,1704292241641,-1620.198826,0.00032776,14]
[310033859,1704292241651,-1889.82963732,0.00032776,14]
[310033860,1704292241661,-122816.31225827,0.00032776,2]
[310033861,1704292241671,-17579.6285,0.00032776,2]
[310033862,1704292241681,-1000.0,0.00032776,2]
[310033863,1704292241691,-250.0,0.00032776,2]
[310033864,1704292241701,-42720.72187708,0.00032776,2]
[310033865,1704292241732,-15343.284,0.00032776,2]
[310033866,1704292241802,-8389.465,0.00032776,2]
[310033867,1704292241814,-849.77319,0.00032776,2]
[310033868,1704292241826,-484.75,0.00032776,2]
[310033869,1704292241838,-7816.91891442,0.00032776,2]
[310034000,1704292243297,-262.64320251,0.00032776,2]
[310034004,1704292243309,-306.000002,0.00032776,2]
[310034021,1704292243453,-19515.31406773,0.00032776,2]
[310034024,1704292243474,-8499.23447587,0.00032776,2]
[310034026,1704292243487,-22486.17814716,0.00032776,2]
[310034041,1704292243625,-5959.92218144,0.00032776,2]
[310034043,1704292243640,-4915.62721752,0.00032776,2]
[310034045,1704292243652,-3718.35934088,0.00032776,2]
[310034048,1704292243666,-6475.46045446,0.00032776,2]
[310034324,1704292246229,-463.28,0.00029989,2]
[310034326,1704292246239,-463.28,0.00032253,2]
[310034328,1704292246248,-711.84,0.00032776,2]
[310034334,1704292246297,-925.60213457,0.00032776,2]
[310034336,1704292246308,-4227.2,0.00032776,2]
[310034355,1704292246479,-42403.39533412,0.00032776,2]
[310034358,1704292246494,-422.17,0.00032776,2]
[310034376,1704292246703,-48566.14046024,0.00032776,2]
[310034378,1704292246713,-2000.0,0.00032776,4]
[310034381,1704292246724,-3312.86736715,0.00032776,3]
[310034383,1704292246742,-24774.40201318,0.00032776,3]
[310034386,1704292246755,-688.26358332,0.00032776,3]
[310034387,1704292246777,-729.34543647,0.00032776,3]
[310034388,1704292246794,-1281.709322,0.00032776,3]
[310035281,1704292501445,174.53,0.00016712,2]
[310035282,1704292521508,500.0,0.000192,2]
[310035283,1704292795795,-541.17477191,0.00026119,2]
[310035284,1704292795820,-727.02,0.00026119,2]
[310035285,1704292795843,-728.78,0.00026119,2]
[310035286,1704292795866,-385.08,0.0002612,2]
[310035287,1704292795890,-719.59,0.00026419,2]
[310035288,1704292795912,-737.79,0.00026574,2]
[310035289,1704292795936,-554.747,0.00026899,14]
[310035290,1704292795959,-723.57,0.00026947,2]
[310035291,1704292795980,-730.58,0.00026997,2]
[310035292,1704292796001,-710.92,0.00026998,2]
[310035293,1704292796023,-150.0,0.00026998,2]
[310035294,1704292796046,-150.0,0.00026998,2]
[310035295,1704292796069,-710.03,0.00026998,2]
[310035296,1704292796090,-722.89,0.00026999,2]
[310035297,1704292796112,-407.82822809,0.00026999,2]
[310035306,1704292953839,1662.94,0.00029,30]
[310035470,1704293431504,-541.17477191,0.00026118,2]
[310035471,1704293431515,-0.78527641,0.00026119,2]
[310035472,1704293431645,-324.095,0.00026119,2]
[310035473,1704293431657,-306.36694777,0.00026119,2]
[310035474,1704293431669,-94.26277582,0.00026119,2]
[310035475,1704293431678,-188.47402418,0.00026177,2]
[310035476,1704293431690,-177.34597582,0.00026177,2]
[310035477,1704293431700,-157.22323054,0.00026899,2]
[310035478,1704293431709,-300.0,0.00026998,2]
[310035479,1704293431719,-318.65177191,0.00026999,2]
[310035480,1704293431728,-726.94,0.00026999,2]
[310035481,1704293431737,-710.02,0.00026999,2]
[310035482,1704293431747,-730.48,0.00026999,2]
[310035483,1704293431756,-732.88,0.00026999,2]
[310035484,1704293431767,-719.9,0.00026999,2]
[310035485,1704293431776,-731.56,0.00026999,2]
[310035486,1704293431786,-450.0,0.00027,3]
[310035487,1704293431796,-4342.0,0.00027397,4]
[310035488,1704293431806,-250.0,0.000274,2]
[310035489,1704293431817,-671.79585293,0.000275,4]
[310035490,1704293431826,-153.33,0.00027852,10]
[310035491,1704293431836,-157.22323048,0.00027862,2]
[310035493,1704293431846,-181.93,0.00027884,2]
[310035495,1704293431856,-199.28,0.00027951,2]
[310035497,1704293431865,-153.83,0.00027978,2]
[310035499,1704293431875,-631.2911421,0.00027978,2]
[310035502,1704293431892,-362.35023193,0.00027978,2]
[310035546,1704293437839,-480.258385,0.00027978,2]
[310035647,1704293439950,-1265.52,0.00027978,2]
[310035649,1704293440715,-1237.23024097,0.00027978,2]
[310035650,1704293440724,-5198.2,0.00028002,2]
[310035651,1704293440734,-738.29,0.00028053,2]
[310035652,1704293440743,-499.99,0.00028053,2]
[310035653,1704293440752,-250.0,0.00028093,2]
[310035654,1704293440762,-600.0,0.00028102,2]
[310035655,1704293440771,-10677.44,0.00028115,2]
[310035656,1704293440781,-4519.0,0.0002815,2]
[310035657,1704293440791,-150.0,0.00028162,2]
[310035658,1704293440800,-250.0,0.00028273,2]
[310035659,1704293440811,-175.12,0.0002829,2]
[310035660,1704293440821,-181.93,0.00028367,2]
[310035661,1704293440831,-365.82,0.0002844,2]
[310035662,1704293440841,-400.0,0.00028572,2]
[310035663,1704293440850,-157.22323048,0.00028825,2]
[310035664,1704293440859,-181.93,0.0002885,2]
[310035665,1704293440868,-154.14,0.00028855,2]
[310035666,1704293440878,-500.0,0.00029,3]
[310035667,1704293440887,-4999.99,0.00029,2]
[310035668,1704293440896,-201.0,0.00029001,2]
[310035669,1704293440905,-153.83,0.00029032,2]
[310035671,1704293440916,-420.0,0.00029188,2]
[310035673,1704293440926,-1061.18,0.00029245,2]
[310035675,1704293440936,-724.86,0.00029298,2]
[310035676,1704293440945,-732.11,0.000293,2]
[310035677,1704293440954,-154.78,0.00029329,2]
[310035678,1704293440964,-181.93,0.00029334,2]
[310035680,1704293440973,-199.28,0.00029348,2]
[310035681,1704293440983,-717.85,0.00029443,2]
[310035683,1704293440993,-157.22323048,0.00029788,2]
[310035684,1704293441003,-1000.0,0.000298,2]
[310035685,1704293441014,-1451.7192,0.000298,2]
[310035686,1704293441025,-655.203,0.000298,2]
[310035687,1704293441035,-1979.6609,0.000298,2]
[310035689,1704293441044,-764.01100509,0.000298,4]
[310035690,1704293441055,-268.21431431,0.000298,2]
[310035691,1704293441066,-268.21431429,0.0002985,2]
[310035692,1704293441079,-715.27,0.00029879,2]
[310035693,1704293441090,-1519.08242669,0.0002989,10]
[310035731,1704293442473,-424.02757331,0.0002989,10]
[310035732,1704293442483,-2199.1851339,0.00029898,2]
[310035733,1704293442493,-406.9775373,0.00029899,2]
[310035734,1704293442502,-716.19,0.000299,2]
[310035735,1704293442512,-3321.2320555,0.000299,2]
[310035736,1704293442524,-4182.80268114,0.000299,2]
[310035737,1704293442536,-18788.61583206,0.000299,2]
[310035738,1704293442756,-4576.3496467,0.000299,2]
[310035739,1704293442769,-1139.8520544,0.000299,2]
[310035740,1704293442798,-2069.84921241,0.000299,2]
[310035741,1704293442810,-1298.88945835,0.000299,2]
[310035742,1704293442826,-545.079985,0.000299,2]
[310035744,1704293442842,-500.0,0.000299,2]
[310035745,1704293442855,-3433.91228065,0.000299,2]
[310035746,1704293442867,-1533.29370938,0.000299,2]
[310035747,1704293442880,-1412.18415497,0.000299,2]
[310035779,1704293445484,-403.92,0.0002829,2]
[310035780,1704293445494,-90.4488287,0.000298,2]
[310035781,1704293464566,167.66616628,0.0002175,2]
[310035782,1704293480502,541.73151857,0.0002175,2]
[310035783,1704293495459,927.79652603,0.0002,2]
[310035784,1704293513773,3882.81198272,0.00021,4]
[310035785,1704293577915,-261.42380051,0.000264,2]
[310035786,1704293633817,1547.00161139,0.00023,2]
[310035787,1704293633849,14079.9938064,0.00023,2]
[310035788,1704293633873,12903.98409862,0.00023,2]
[310035853,1704294221046,-155.0,0.00024999,2]
[310035867,1704294280786,600.0,0.00029,30]
[310035901,1704294512730,-382.96978774,0.00024999,2]
[310035902,1704294512781,-732.48583642,0.00025,7]
[310035954,1704294631637,-255.7347876,0.00025,7]
[310035955,1704294631650,-348.0108,0.00025,7]
[310035989,1704294637788,-1087.31831815,0.00025,7]
[310035990,1704294637800,-300.0,0.00025,2]
[310035991,1704294637811,-202.0,0.00026001,2]
[310035992,1704294637822,-362.13,0.00026191,2]
[310035993,1704294637833,-382.96978774,0.00026999,2]
[310035994,1704294637844,-450.0,0.00027,3]
[310035995,1704294637854,-250.0,0.000274,2]
[310035996,1704294637864,-321.81267876,0.0002755,2]
[310035997,1704294637875,-202.0,0.0002762,4]
[310035998,1704294637886,-150.0,0.0002789,2]
[310035999,1704294637897,-232.5,0.00027954,2]
[310036000,1704294637908,-250.0,0.0002797,2]
[310036001,1704294637918,-1195.79,0.00028026,2]
[310036002,1704294637929,-499.99,0.00028026,2]
[310036003,1704294637939,-300.0,0.00028065,2]
[310036004,1704294637955,-17048.71271098,0.00028066,2]
[310036005,1704294637979,-347.69915314,0.00028066,2]
[310036006,1704294638005,-3829.24813588,0.00028066,2]
[310036007,1704294638016,-155.48,0.0002809,2]
[310036008,1704294638027,-154.78,0.000281,2]
[310036009,1704294638037,-2000.0,0.00028128,2]
[310036010,1704294638048,-1265.52,0.00028128,2]
[310036011,1704294638058,-1631.45,0.00028128,2]
[310036012,1704294638068,-480.0,0.00028222,2]
[310036013,1704294638079,-250.0,0.00028341,2]
[310036014,1704294638089,-199.28,0.00028341,2]
[310036015,1704294638100,-362.13,0.00028455,2]
[310036016,1704294638111,-1382.63325203,0.00028652,2]
[310036017,1704294638125,-290.68878463,0.00028652,2]
[310036019,1704294638139,-653.45430024,0.00028652,2]
[310036022,1704294638157,-329.37664566,0.00028652,2]
[310036024,1704294638170,-4237.7597,0.00028652,2]
[310036026,1704294638182,-1098.49999999,0.00028652,2]
[310036028,1704294638197,-495.79057678,0.00028652,2]
[310036029,1704294638210,-409.65674067,0.00028652,2]
[310036030,1704294638221,-414.88648268,0.000287,2]
[310036224,1704294640198,-300.0,0.00025,2]
[310036225,1704294640208,-157.31874022,0.000273,2]
[310036226,1704294640218,-173.83,0.00027822,2]
[310036227,1704294640227,-1067.1060241,0.000287,2]
[310036228,1704294640241,-604.73216751,0.000287,2]
[310036229,1704294640251,-300.0,0.000287,2]
[310036230,1704294640260,-300.0,0.000287,2]
[310036231,1704294640270,-158.7,0.00028719,2]
[310036232,1704294640280,-214.1897962,0.00028998,2]
[310036233,1704294640293,-158.65469295,0.00029,2]
[310036234,1704294640302,-417.83655227,0.00029,2]
[310036235,1704294640319,-84435.15699994,0.00029,2]
[310036284,1704294642644,-1619.25,0.0002899,10]
[310036286,1704294642654,-1001.65386114,0.00029,2]
[310036288,1704294642667,-11242.26096062,0.00029,2]
[310036292,1704294642716,-322.9606254,0.00029,2]
[310036293,1704294642817,-31518.51738102,0.00029,2]
[310036294,1704294642828,-500.0,0.00029,3]
[310036295,1704294642838,-520.0,0.00029076,2]
[310036296,1704294642847,-686.67,0.00029076,2]
[310036297,1704294642857,-166.37,0.00029126,2]
[310036298,1704294642867,-155.48,0.00029232,2]
[310036299,1704294642877,-202.0,0.00029239,7]
[310036300,1704294642887,-665.91406435,0.000293,4]
[310036301,1704294642897,-158.7,0.00029467,2]
[310036302,1704294642907,-155.56,0.00029687,2]
[310036303,1704294642917,-889.5452,0.00029699,2]
[310036304,1704294642927,-2500.0,0.000297,2]
[310036305,1704294642937,-688.44118871,0.000297,4]
[310036306,1704294642947,-167.85,0.00029727,2]
[310036307,1704294642956,-909.5511713,0.000298,2]
[310036308,1704294642966,-100000.0,0.000298,2]
[310036309,1704294642977,-500.0,0.000298,2]
[310036310,1704294642988,-66818.92143623,0.000298,2]
[310036311,1704294643001,-4111.8205878,0.000298,2]
[310036312,1704294643013,-8502.2229181,0.000298,2]
[310036313,1704294643029,-416.1118007,0.000298,2]
[310036314,1704294643041,-804.699999,0.000298,2]
[310036315,1704294643058,-21162.69000002,0.000298,2]
[310036323,1704294645855,-157.31874022,0.00028926,2]
[310036324,1704294645866,-696.75265605,0.00028999,2]
[310036325,1704294645876,-2684.10857205,0.000298,2]
[310036369,1704294651078,-140499.4246861,0.000298,2]
[310036370,1704294651088,-1000.0,0.000298,2]
[310036371,1704294651098,-373.51809225,0.00029898,2]
[310036372,1704294651107,-1057.30381415,0.00029898,2]
[310036373,1704294651117,-17543.29022994,0.00029899,2]
[310036374,1704294651127,-169.01707396,0.0002999,2]
[310036375,1704294651137,-155.0,0.0003,2]
[310036376,1704294651146,-4289.87610831,0.0003,4]
[310036377,1704294651156,-5000.0,0.0003,7]
[310036378,1704294651167,-29184.4546885,0.0003,2]
[310036379,1704294651177,-2032.9,0.0003,2]
[310036380,1704294651187,-23306.81999701,0.0003,2]
[310036381,1704294651197,-607.01703962,0.0003,31]
[310036382,1704294651206,-508.05332402,0.0003,6]
[310036383,1704294651216,-3000.0,0.0003,2]
[310036384,1704294651226,-158.7,0.00030216,2]
[310036385,1704294651236,-150.00000001,0.00030291,2]
[310036386,1704294651247,-154.14,0.00030298,2]
[310036387,1704294651258,-420.0,0.00030308,2]
[310036388,1704294651268,-155.48,0.00030373,2]
[310036389,1704294651278,-52840.0,0.00030383,2]
[310036390,1704294651287,-688.44118864,0.00030397,5]
[310036391,1704294651297,-500.0,0.00030496,2]
[310036392,1704294651310,-196.74237707,0.00030701,4]
[310036393,1704294651319,-362.13,0.00030719,2]
[310036394,1704294651330,-3000.0,0.0003073,2]
[310036395,1704294651340,-200.0,0.000308,11]
[310036396,1704294651350,-153.84,0.00030838,2]
[310036397,1704294651359,-202.0,0.00030858,10]
[310036398,1704294651369,-500.0,0.000309,11]
[310036399,1704294651379,-5000.0,0.00030918,2]
[310036400,1704294651389,-2265.0,0.00030933,2]
[310036401,1704294651401,-2894.0,0.00030933,2]
[310036402,1704294651413,-1202.218,0.00030933,2]
[310036403,1704294651422,-15307.078,0.00030933,2]
[310036404,1704294651432,-1312.407,0.00030933,2]
[310036405,1704294651442,-1026.0,0.00030933,2]
[310036406,1704294651453,-152.0,0.00030957,3]
[310036407,1704294651463,-17674.43040815,0.00030957,3]
[310036408,1704294651473,-651.22322889,0.00030957,2]
[310036409,1704294651483,-550.0,0.00031,3]
[310036410,1704294651494,-600.0,0.00031,32]
[310036411,1704294651504,-900000.0,0.00031,2]
[310036412,1704294651515,-191.20833821,0.00031057,2]
[310036413,1704294651525,-688.44118864,0.00031094,5]
[310036414,1704294651535,-1000.0,0.00031137,2]
[310036415,1704294651544,-1000.0,0.00031137,2]
[310036416,1704294651555,-1000.0,0.00031137,2]
[310036417,1704294651565,-1000.0,0.00031137,2]
[310036418,1704294651575,-199.28,0.00031175,2]
[310036419,1704294651585,-500.0,0.00031232,2]
[310036420,1704294651596,-651.22322879,0.00031286,2]
[310036421,1704294651607,-500.0,0.000315,2]
[310036422,1704294651616,-155.48,0.00031515,2]
[310036423,1704294651627,-150.0,0.00031533,2]
[310036424,1704294651638,-150.0,0.00031533,2]
[310036425,1704294651648,-150.0,0.00031533,2]
[310036426,1704294651658,-150.0,0.00031533,2]
[310036427,1704294651668,-150.0,0.00031533,2]
[310036428,1704294651678,-284.928,0.00031533,2]
[310036429,1704294651688,-150.0,0.00031533,2]
[310036430,1704294651699,-2411.0,0.00031533,2]
[310036431,1704294651709,-623.992,0.00031533,2]
[310036432,1704294651719,-388.0,0.00031533,2]
[310036433,1704294651730,-1463.111,0.00031533,2]
[310036434,1704294651741,-942.0,0.00031533,2]
[310036435,1704294651750,-833.0,0.00031533,2]
[310036436,1704294651760,-1234.0,0.00031533,2]
[310036437,1704294651770,-313.671,0.00031533,2]
[310036438,1704294651780,-1926.0,0.00031533,2]
[310036439,1704294651790,-992.0,0.00031533,2]
[310036440,1704294651800,-1138.0,0.00031533,2]
[310036441,1704294651809,-210.537,0.00031533,2]
[310036442,1704294651819,-424.0,0.00031533,2]
[310036443,1704294651829,-750.0,0.00031533,2]
[310036444,1704294651838,-318.0,0.00031533,2]
[310036445,1704294651849,-506.0,0.00031533,2]
[310036446,1704294651858,-651.22322879,0.00031616,3]
[310036447,1704294651868,-7435.54355556,0.000317,14]
[310036448,1704294651878,-500.0,0.000317,15]
[310036449,1704294651887,-500.0,0.000317,15]
[310036450,1704294651897,-500.0,0.000317,15]
[310036451,1704294651906,-500.0,0.000317,15]
[310036452,1704294651915,-154.14,0.00031741,2]
[310036453,1704294651925,-480.0,0.0003175,2]
[310036455,1704294651935,-153.84,0.00031773,2]
[310036456,1704294651944,-151.0,0.00031786,120]
[310036457,1704294651954,-5000.0,0.00031788,2]
[310036458,1704294651964,-200.1374795,0.00031788,2]
[310036459,1704294651974,-688.44118864,0.00031791,5]
[310036460,1704294651984,-150.1,0.000318,2]
[310036461,1704294651995,-219503.080366,0.000318,3]
[310036462,1704294652005,-3314.54205237,0.00031888,4]
[310036463,1704294652015,-150.81765991,0.000319,2]
[310036464,1704294652025,-150.8176596,0.000319,2]
[310036465,1704294652035,-700.0,0.000319,11]
[310036467,1704294652045,-500.0,0.00031968,2]
[310036468,1704294652055,-200.0,0.00031968,2]
[310036469,1704294652065,-150.8176596,0.0003198,2]
[310036470,1704294652074,-3000.0,0.0003198,2]
[310036471,1704294652084,-296.83355854,0.00032,4]
[310036472,1704294652094,-1000.0,0.00032,32]
[310036473,1704294652104,-5000.0,0.00032,7]
[310036474,1704294652114,-600.0,0.00032,33]
[310036475,1704294652124,-2450.35350151,0.00032,4]
[310036476,1704294652134,-318.67,0.00032,2]
[310036477,1704294652143,-10798.21810837,0.00032278,2]
[310036478,1704294652154,-40655.03885896,0.00032278,7]
[310036479,1704294652163,-34520.83183313,0.00032278,7]
[310036480,1704294652173,-17870.8484737,0.00032278,7]
[310036481,1704294652183,-1721.80684512,0.00032278,2]
[310036482,1704294652193,-50000.0,0.00032278,7]
[310036483,1704294652203,-19953.13967604,0.00032278,7]
[310036484,1704294652213,-152.0,0.0003229,4]
[310036485,1704294652223,-7500.0,0.000323,2]
[310036486,1704294652232,-32477.0,0.000324,2]
[310036487,1704294652244,-151.0,0.00032435,30]
[310036488,1704294652254,-150.8176596,0.00032441,2]
[310036489,1704294652263,-202.0,0.00032477,13]
[310036490,1704294652273,-688.44118864,0.00032489,6]
[310036491,1704294652283,-16466.01389771,0.000325,2]
[310036492,1704294652293,-500.0,0.00032521,2]
[310036493,1704294652303,-613.59,0.00032543,2]
[310036494,1704294652312,-155.48,0.00032657,2]
[310036495,1704294652322,-2000.0,0.00032676,4]
[310036496,1704294652332,-55555.0,0.00032676,3]
[310036497,1704294652342,-191.2083382,0.00032676,2]
[310036498,1704294652351,-257.09126002,0.00032676,21]
[310036499,1704294652361,-167.85,0.00032699,2]
[310036500,1704294652371,-1000.0,0.000327,60]
[310036501,1704294652380,-1000.0,0.000327,60]
[310036502,1704294652391,-968.13,0.000327,3]
[310036503,1704294652400,-1000.0,0.000327,11]
[310036504,1704294652410,-153.84,0.00032707,2]
[310036505,1704294652419,-520.0,0.00032711,2]
[310036506,1704294652429,-5000.0,0.00032729,2]